fUST/lending_fUST_20250716
["ID","MTS","AMOUNT","RATE_DAILY","PERIOD"]
[372549540,1752679859390,-460.0,0.00021917,2]
[372549541,1752679859400,-2589.89,0.00021917,2]
[372549542,1752679859409,-3564.08,0.00021917,2]
[372549543,1752679859419,-460.0,0.00021917,2]
[372549544,1752679859428,-1879.23,0.00021917,2]
[372549545,1752679859437,-1196.19,0.00021917,2]
[372549546,1752679859447,-13889.83,0.00021917,2]
[372549547,1752679859457,-2089.21,0.00021917,2]
[372549548,1752679859467,-460.0,0.00021917,2]
[372549549,1752679859477,-460.0,0.00021917,2]
[372549550,1752679859486,-864.03,0.00021917,2]
[372549551,1752679859496,-464.03,0.00021917,2]
[372549552,1752679859505,-460.0,0.00021917,2]
[372549553,1752679859515,-460.0,0.00021917,2]
[372549554,1752679859524,-460.0,0.00021917,2]
[372549555,1752679859534,-942.0,0.00021917,2]
[372549556,1752679859543,-460.0,0.00021917,2]
[372549557,1752679859553,-460.0,0.00021917,2]
[372549558,1752679859562,-1156.65,0.00021917,2]
[372549559,1752679859571,-460.0,0.00021917,2]
[372549560,1752679859580,-564.35,0.00021917,2]
[372549561,1752679859590,-460.0,0.00021917,2]
[372549562,1752679859600,-460.0,0.00021917,2]
[372549563,1752679859610,-5710.44,0.00021917,2]
[372549564,1752679859620,-9435.4,0.00021917,2]
[372549565,1752679859630,-460.0,0.00021917,2]
[372549566,1752679859639,-1063.71,0.00021917,2]
[372549567,1752679859649,-4062.86,0.00021917,2]
[372549568,1752679859659,-460.0,0.00021917,2]
[372549569,1752679859669,-460.0,0.00021917,2]
[372549570,1752679859679,-460.0,0.00021917,2]
[372549571,1752679859692,-1067.68,0.00021917,2]
[372549572,1752679859703,-1081.66,0.00021917,2]
[372549573,1752679859713,-801.73,0.00021917,2]
[372549574,1752679859723,-460.0,0.00021917,2]
[372549575,1752679859734,-801.73,0.00021917,2]
[372549576,1752679859744,-652.86,0.00021917,2]
[372549577,1752679859755,-662.38,0.00021917,2]
[372549578,1752679859764,-477.15,0.00021917,2]
[372549579,1752679859774,-1058.85,0.00021917,2]
[372549580,1752679859784,-917.58,0.00021917,2]
[372549581,1752679859794,-5295.6,0.00021917,2]
[372549582,1752679859803,-4731.5,0.00021917,2]
[372549583,1752679859812,-1895.02,0.00021917,2]
[372549584,1752679859822,-460.0,0.00021917,2]
[372549585,1752679859831,-3263.9,0.00021917,2]
[372549586,1752679859841,-2186.29,0.00021917,2]
[372549587,1752679859851,-5028.57,0.00021917,2]
[372549588,1752679859860,-582.88,0.00021917,2]
[372549589,1752679859870,-460.0,0.00021917,2]
[372549590,1752679859880,-469.31,0.00021917,2]
[372549591,1752679859890,-1167.8,0.00021917,2]
[372549592,1752679859899,-1440.99,0.00021917,2]
[372549593,1752679859910,-467.63,0.00021917,2]
[372549594,1752679859921,-1586.13,0.00021917,2]
[372549595,1752679859933,-150.07429765,0.00021918,2]
[372549596,1752679859943,-200.0,0.00021918,2]
[372549597,1752679859952,-158.02861431,0.0002192,4]
[372549598,1752679859962,-158.02861431,0.0002192,4]
[372549599,1752679859972,-158.02,0.0002192,4]
[372549600,1752679859982,-158.02861431,0.0002192,4]
[372549601,1752679859991,-158.02861431,0.0002192,4]
[372549602,1752679860001,-158.02861431,0.0002192,4]
[372549603,1752679860011,-158.02861431,0.0002192,4]
[372549604,1752679860021,-158.02861431,0.0002192,4]
[372549605,1752679860031,-150.04226239,0.0002192,4]
[372549606,1752679860041,-150.04226239,0.0002192,4]
[372549607,1752679860052,-150.04226239,0.0002192,4]
[372549608,1752679860062,-150.04226239,0.0002192,4]
[372549609,1752679860073,-150.04,0.0002192,4]
[372549610,1752679860083,-159.13573284,0.0002192,4]
[372549611,1752679860093,-159.13573284,0.0002192,4]
[372549612,1752679860102,-159.13573284,0.0002192,4]
[372549613,1752679860113,-159.13573284,0.0002192,4]
[372549614,1752679860124,-159.13573284,0.0002192,4]
[372549615,1752679860133,-159.13573284,0.0002192,4]
[372549616,1752679860143,-159.13573284,0.0002192,4]
[372549617,1752679860153,-159.13573284,0.0002192,4]
[372549618,1752679860163,-963.34381087,0.00021938,2]
[372549619,1752679860173,-1000.0,0.00021938,2]
[372549620,1752679860183,-1000.0,0.00021938,2]
[372549621,1752679860192,-460.0,0.00021953,2]
[372549622,1752679860202,-9021.18677679,0.00021969,6]
[372549623,1752679860215,-500.0,0.00021973,2]
[372549624,1752679860225,-500.0,0.00021973,2]
[372549625,1752679860235,-500.0,0.00021973,2]
[372549626,1752679860244,-500.0,0.00021973,2]
[372549627,1752679860253,-500.0,0.00021973,2]
[372549628,1752679860263,-525.44090785,0.00021973,2]
[372549629,1752679860273,-150.0,0.00021973,2]
[372549630,1752679860284,-500.0,0.00021973,2]
[372549631,1752679860294,-500.45140818,0.00021973,2]
[372549632,1752679860304,-500.80122548,0.00021973,2]
[372549633,1752679860314,-500.81020057,0.00021973,2]
[372549634,1752679860323,-500.0,0.00021973,2]
[372549635,1752679860333,-500.0,0.00021973,2]
[372549636,1752679860343,-500.0,0.00021973,2]
[372549637,1752679860352,-500.0,0.00021973,2]
[372549638,1752679860362,-500.0,0.00021973,2]
[372549639,1752679860371,-159.13573284,0.00021983,4]
[372549640,1752679860381,-168.0,0.00022,2]
[372549641,1752679860391,-48988.37,0.00022,7]
[372549642,1752679860402,-360.683163,0.00022,14]
[372549643,1752679860412,-75218.82571281,0.00022,2]
[372549644,1752679860421,-214.40824756,0.00022,7]
[372549645,1752679860431,-352.61950143,0.00022,2]
[372549646,1752679860441,-74375.8868597,0.00022,2]
[372549647,1752679860452,-27656.40989895,0.00022,2]
[372549648,1752679860467,-48166.90911244,0.00022,14]
[372549649,1752679860477,-166.66245316,0.00022,10]
[372549650,1752679860487,-550.3576061,0.00022,2]
[372549651,1752679860497,-4279.04,0.00022,7]
[372549652,1752679860507,-49992.79,0.00022,2]
[372549653,1752679860517,-151.0,0.00022,7]
[372549654,1752679860527,-458.715857,0.00022,7]
[372549655,1752679860537,-458.715857,0.00022,7]
[372549656,1752679860547,-225.537329,0.00022,7]
[372549657,1752679860556,-225.537329,0.00022,7]
[372549658,1752679860566,-160.0,0.00022007,5]
[372549659,1752679860576,-298.9,0.00022045,5]
[372549660,1752679860586,-158.02861431,0.0002207,4]
[372549661,1752679860596,-4013.89011524,0.00022154,2]
[372549662,1752679860606,-1504.37694132,0.00022164,2]
[372549663,1752679860616,-9021.18677679,0.00022176,6]
[372549664,1752679860626,-159.13573284,0.00022187,4]
[372549665,1752679860635,-460.0,0.00022191,2]
[372549666,1752679860645,-460.0,0.00022191,2]
[372549667,1752679860655,-460.0,0.00022191,2]
[372549668,1752679860665,-617.79,0.00022191,2]
[372549669,1752679860675,-460.0,0.00022191,2]
[372549670,1752679860690,-460.0,0.00022191,2]
[372549671,1752679860701,-561.35,0.00022191,2]
[372549672,1752679860716,-466.62,0.00022191,2]
[372549673,1752679860727,-779.28,0.00022191,2]
[372549674,1752679860736,-460.0,0.00022191,2]
[372549675,1752679860746,-460.0,0.00022191,2]
[372549676,1752679860757,-460.0,0.00022191,2]
[372549677,1752679860769,-939.24,0.00022191,2]
[372549678,1752679860779,-460.0,0.00022191,2]
[372549679,1752679860790,-602.64,0.00022191,2]
[372549680,1752679860799,-460.0,0.00022191,2]
[372549681,1752679860809,-1185.85,0.00022191,2]
[372549682,1752679860819,-323.85802397,0.00022191,2]
[372549683,1752679860829,-460.0,0.00022191,2]
[372549684,1752679860840,-460.0,0.00022191,2]
[372549685,1752679860850,-497.20129179,0.00022191,2]
[372549686,1752679860866,-1429.97,0.00022191,2]
[372549687,1752679860881,-844.39,0.00022191,2]
[372549688,1752679860890,-987.04,0.00022191,2]
[372549689,1752679860900,-594.46,0.00022191,2]
[372549690,1752679860910,-460.0,0.00022191,2]
[372549691,1752679860920,-460.0,0.00022191,2]
[372549692,1752679860930,-778.65,0.00022191,2]
[372549693,1752679860939,-5117.18,0.00022191,2]
[372549694,1752679860949,-460.0,0.00022191,2]
[372549695,1752679860962,-471.95,0.00022191,2]
[372549696,1752679860972,-10006.83,0.00022191,2]
[372549697,1752679860982,-506.45,0.00022191,2]
[372549698,1752679860992,-2438.56,0.00022191,2]
[372549699,1752679861002,-687.27,0.00022191,2]
[372549700,1752679861012,-639.69,0.00022191,2]
[372549701,1752679861022,-460.0,0.00022191,2]
[372549702,1752679861031,-460.0,0.00022191,2]
[372549703,1752679861041,-521.65,0.00022191,2]
[372549704,1752679861051,-4147.13,0.00022191,2]
[372549705,1752679861061,-6962.62,0.00022191,2]
[372549706,1752679861071,-431.5887327,0.00022191,2]
[372549707,1752679861080,-460.0,0.00022191,2]
[372549708,1752679861091,-959.76,0.00022191,2]
[372549709,1752679861101,-460.0,0.00022191,2]
[372549710,1752679861111,-2589.89,0.00022191,2]
[372549711,1752679861121,-3564.08,0.00022191,2]
[372549712,1752679861131,-460.0,0.00022191,2]
[372549713,1752679861140,-1879.23,0.00022191,2]
[372549714,1752679861151,-1196.19,0.00022191,2]
[372549715,1752679861161,-13889.83,0.00022191,2]
[372549716,1752679861171,-2089.21,0.00022191,2]
[372549717,1752679861181,-460.0,0.00022191,2]
[372549718,1752679861192,-460.0,0.00022191,2]
[372549719,1752679861201,-864.03,0.00022191,2]
[372549720,1752679861213,-464.03,0.00022191,2]
[372549721,1752679861223,-460.0,0.00022191,2]
[372549722,1752679861232,-460.0,0.00022191,2]
[372549723,1752679861242,-460.0,0.00022191,2]
[372549724,1752679861253,-460.0,0.00022191,2]
[372549725,1752679861262,-942.0,0.00022191,2]
[372549726,1752679861272,-460.0,0.00022191,2]
[372549727,1752679861282,-1156.65,0.00022191,2]
[372549728,1752679861291,-460.0,0.00022191,2]
[372549729,1752679861301,-564.35,0.00022191,2]
[372549730,1752679861310,-561.69027837,0.00022191,2]
[372549731,1752679861320,-460.0,0.00022191,2]
[372549732,1752679861330,-5710.44,0.00022191,2]
[372549733,1752679861339,-9435.4,0.00022191,2]
[372549734,1752679861349,-460.0,0.00022191,2]
[372549735,1752679861359,-1063.71,0.00022191,2]
[372549736,1752679861369,-4062.86,0.00022191,2]
[372549737,1752679861379,-460.0,0.00022191,2]
[372549738,1752679861389,-460.0,0.00022191,2]
[372549739,1752679861398,-460.0,0.00022191,2]
[372549740,1752679861408,-1067.68,0.00022191,2]
[372549741,1752679861418,-801.73,0.00022191,2]
[372549742,1752679861428,-1081.66,0.00022191,2]
[372549743,1752679861438,-460.0,0.00022191,2]
[372549744,1752679861448,-801.73,0.00022191,2]
[372549745,1752679861460,-652.86,0.00022191,2]
[372549746,1752679861470,-662.38,0.00022191,2]
[372549747,1752679861479,-1058.85,0.00022191,2]
[372549748,1752679861488,-917.58,0.00022191,2]
[372549749,1752679861499,-5295.6,0.00022191,2]
[372549750,1752679861509,-4731.5,0.00022191,2]
[372549751,1752679861519,-460.0,0.00022191,2]
[372549752,1752679861528,-1895.02,0.00022191,2]
[372549753,1752679861539,-3263.9,0.00022191,2]
[372549754,1752679861549,-2186.29,0.00022191,2]
[372549755,1752679861559,-5028.57,0.00022191,2]
[372549756,1752679861569,-582.88,0.00022191,2]
[372549757,1752679861579,-460.0,0.00022191,2]
[372549758,1752679861591,-469.31,0.00022191,2]
[372549759,1752679861602,-1167.8,0.00022191,2]
[372549760,1752679861611,-1440.99,0.00022191,2]
[372549761,1752679861621,-467.63,0.00022191,2]
[372549762,1752679861630,-1586.13,0.00022191,2]
[372549763,1752679861640,-19293.48144392,0.000222,2]
[372549764,1752679861650,-3000.0,0.00022212,2]
[372549765,1752679861660,-1004.14347637,0.00022216,2]
[372549766,1752679861670,-500.99450191,0.00022216,2]
[372549767,1752679861683,-2000.0,0.00022216,2]
[372549768,1752679861698,-2000.0,0.00022216,2]
[372549769,1752679861711,-2000.0,0.00022216,2]
[372549770,1752679861721,-2000.0,0.00022216,2]
[372549771,1752679861731,-1000.0,0.00022251,5]
[372549772,1752679861740,-4330.86530472,0.00022258,2]
[372549773,1752679861750,-223.0315306,0.00022265,2]
[372549774,1752679861760,-151.0,0.000223,5]
[372549775,1752679861770,-656.64663739,0.000223,2]
[372549776,1752679861780,-168.0,0.00022357,2]
[372549777,1752679861790,-9021.18677679,0.00022383,7]
[372549778,1752679861799,-158.02,0.0002239,4]
[372549779,1752679861809,-159.13,0.0002239,4]
[372549780,1752679861818,-168.0,0.00022393,2]
[372549781,1752679861828,-52950.13438887,0.000224,2]
[372549782,1752679861838,-298.9,0.0002241,5]
[372549783,1752679861848,-160.0,0.00022456,6]
[372549784,1752679861858,-517.33663062,0.00022464,2]
[372549785,1752679861868,-460.0,0.00022465,2]
[372549786,1752679861878,-460.0,0.00022465,2]
[372549787,1752679861887,-460.0,0.00022465,2]
[372549788,1752679861897,-617.79,0.00022465,2]
[372549789,1752679861907,-460.0,0.00022465,2]
[372549790,1752679861916,-460.0,0.00022465,2]
[372549791,1752679861926,-561.35,0.00022465,2]
[372549792,1752679861936,-466.62,0.00022465,2]
[372549793,1752679861946,-779.28,0.00022465,2]
[372549794,1752679861957,-460.0,0.00022465,2]
[372549795,1752679861967,-460.0,0.00022465,2]
[372549796,1752679861977,-460.0,0.00022465,2]
[372549797,1752679861986,-939.24,0.00022465,2]
[372549798,1752679861996,-460.0,0.00022465,2]
[372549799,1752679862006,-300.15,0.00022465,2]
[372549800,1752679862015,-1185.85,0.00022465,2]
[372549801,1752679862025,-460.0,0.00022465,2]
[372549802,1752679862035,-460.0,0.00022465,2]
[372549803,1752679862045,-1429.97,0.00022465,2]
[372549804,1752679862054,-360.683163,0.00022465,2]
[372549805,1752679862064,-844.39,0.00022465,2]
[372549806,1752679862073,-987.04,0.00022465,2]
[372549807,1752679862083,-594.46,0.00022465,2]
[372549808,1752679862092,-460.0,0.00022465,2]
[372549809,1752679862102,-460.0,0.00022465,2]
[372549810,1752679862113,-778.65,0.00022465,2]
[372549811,1752679862247,-5117.18,0.00022465,2]
[372549812,1752679862260,-460.0,0.00022465,2]
[372549813,1752679862270,-471.95,0.00022465,2]
[372549814,1752679862279,-10006.83,0.00022465,2]
[372549815,1752679862289,-506.45,0.00022465,2]
[372549816,1752679862299,-2438.56,0.00022465,2]
[372549817,1752679862308,-687.27,0.00022465,2]
[372549818,1752679862318,-639.69,0.00022465,2]
[372549819,1752679862327,-460.0,0.00022465,2]
[372549820,1752679862337,-460.0,0.00022465,2]
[372549821,1752679862347,-521.65,0.00022465,2]
[372549822,1752679862358,-4147.13,0.00022465,2]
[372549823,1752679862369,-6962.62,0.00022465,2]
[372549824,1752679862379,-460.0,0.00022465,2]
[372549825,1752679862389,-959.76,0.00022465,2]
[372549826,1752679862399,-2589.89,0.00022465,2]
[372549827,1752679862409,-3564.08,0.00022465,2]
[372549828,1752679862419,-460.0,0.00022465,2]
[372549829,1752679862428,-1879.23,0.00022465,2]
[372549830,1752679862438,-1196.19,0.00022465,2]
[372549831,1752679862447,-13889.83,0.00022465,2]
[372549832,1752679862459,-2089.21,0.00022465,2]
[372549833,1752679862469,-460.0,0.00022465,2]
[372549834,1752679862478,-864.03,0.00022465,2]
[372549835,1752679862487,-295.35634492,0.00022465,2]
[372549836,1752679862497,-464.03,0.00022465,2]
[372549837,1752679862506,-460.0,0.00022465,2]
[372549838,1752679862516,-234.45589888,0.00022465,2]
[372549839,1752679862527,-460.0,0.00022465,2]
[372549840,1752679862536,-460.0,0.00022465,2]
[372549841,1752679862546,-942.0,0.00022465,2]
[372549842,1752679862556,-460.0,0.00022465,2]
[372549843,1752679862566,-1156.65,0.00022465,2]
[372549844,1752679862577,-460.0,0.00022465,2]
[372549845,1752679862586,-564.35,0.00022465,2]
[372549846,1752679862598,-151.0,0.00022465,7]
[372549847,1752679862607,-460.0,0.00022465,2]
[372549848,1752679862617,-5710.44,0.00022465,2]
[372549849,1752679862628,-9435.4,0.00022465,2]
[372549850,1752679862639,-460.0,0.00022465,2]
[372549851,1752679862649,-1063.71,0.00022465,2]
[372549852,1752679862660,-4062.86,0.00022465,2]
[372549853,1752679862670,-460.0,0.00022465,2]
[372549854,1752679862685,-460.0,0.00022465,2]
[372549855,1752679862697,-549.33657761,0.00022465,2]
[372549856,1752679862709,-1067.68,0.00022465,2]
[372549857,1752679862719,-801.73,0.00022465,2]
[372549858,1752679862728,-1081.66,0.00022465,2]
[372549859,1752679862738,-460.0,0.00022465,2]
[372549860,1752679862748,-576.662623,0.00022465,7]
[372549861,1752679862758,-801.73,0.00022465,2]
[372549862,1752679862771,-652.86,0.00022465,2]
[372549863,1752679862781,-662.38,0.00022465,2]
[372549864,1752679862791,-576.662623,0.00022465,7]
[372549865,1752679862801,-1058.85,0.00022465,2]
[372549866,1752679862811,-917.58,0.00022465,2]
[372549867,1752679862821,-5295.6,0.00022465,2]
[372549868,1752679862831,-4731.5,0.00022465,2]
[372549869,1752679862841,-460.0,0.00022465,2]
[372549870,1752679862851,-1895.02,0.00022465,2]
[372549871,1752679862861,-3263.9,0.00022465,2]
[372549872,1752679862871,-2186.29,0.00022465,2]
[372549873,1752679862880,-5028.57,0.00022465,2]
[372549874,1752679862890,-582.88,0.00022465,2]
[372549875,1752679862899,-460.0,0.00022465,2]
[372549876,1752679862909,-469.31,0.00022465,2]
[372549877,1752679862919,-1167.8,0.00022465,2]
[372549878,1752679862930,-1440.99,0.00022465,2]
[372549879,1752679862941,-467.63,0.00022465,2]
[372549880,1752679862951,-1586.13,0.00022465,2]
[372549881,1752679862962,-1500.0,0.00022486,2]
[372549882,1752679862972,-2371.95364087,0.0002249,2]
[372549883,1752679862982,-2244252.72937246,0.0002249,7]
[372549884,1752679862991,-151.0,0.0002249,7]
[372549885,1752679863002,-458.715857,0.0002249,7]
[372549886,1752679863011,-458.715857,0.0002249,7]
[372549887,1752679863021,-225.537329,0.0002249,7]
[372549888,1752679863030,-225.537329,0.0002249,7]
[372549889,1752679863040,-1006.41115469,0.000225,2]
[372549890,1752679863049,-560.0,0.00022501,2]
[372549891,1752679863059,-1000.0,0.00022521,2]
[372549892,1752679863069,-1000.0,0.00022521,2]
[372549893,1752679863079,-1000.0,0.00022521,2]
[372549894,1752679863088,-1000.0,0.00022521,2]
[372549895,1752679863099,-250.0,0.00022521,2]
[372549896,1752679863109,-1001.3204257,0.00022521,2]
[372549897,1752679863119,-1000.0,0.00022521,2]
[372549898,1752679863128,-1000.0,0.00022521,2]
[372549899,1752679863138,-500.85117151,0.00022521,2]
[372549900,1752679863148,-847.86319805,0.00022521,2]
[372549901,1752679863159,-1000.0,0.00022521,2]
[372549902,1752679863170,-587.0,0.00022532,2]
[372549903,1752679863180,-739.0,0.00022535,2]
[372549904,1752679863190,-9021.18677679,0.0002259,7]
[372549905,1752679863200,-309.745467,0.00022603,2]
[372549906,1752679863212,-400.0,0.00022603,2]
[372549907,1752679863222,-4330.86530472,0.00022699,2]
[372549908,1752679863232,-168.0,0.00022719,2]
[372549909,1752679863242,-4000.0,0.00022738,4]
[372549910,1752679863253,-598.86324012,0.00022739,2]
[372549911,1752679863263,-460.0,0.00022739,2]
[372549912,1752679863273,-460.0,0.00022739,2]
[372549913,1752679863283,-617.79,0.00022739,2]
[372549914,1752679863293,-460.0,0.00022739,2]
[372549915,1752679863303,-460.0,0.00022739,2]
[372549916,1752679863313,-561.35,0.00022739,2]
[372549917,1752679863323,-466.62,0.00022739,2]
[372549918,1752679863333,-779.28,0.00022739,2]
[372549919,1752679863343,-460.0,0.00022739,2]
[372549920,1752679863353,-460.0,0.00022739,2]
[372549921,1752679863363,-160.18433971,0.00022739,2]
[372549922,1752679863373,-939.24,0.00022739,2]
[372549923,1752679863383,-330.75949218,0.00022739,2]
[372549924,1752679863393,-1185.85,0.00022739,2]
[372549925,1752679863403,-460.0,0.00022739,2]
[372549926,1752679863413,-1429.97,0.00022739,2]
[372549927,1752679863423,-987.04,0.00022739,2]
[372549928,1752679863433,-844.39,0.00022739,2]
[372549929,1752679863443,-594.46,0.00022739,2]
[372549930,1752679863453,-460.0,0.00022739,2]
[372549931,1752679863465,-460.0,0.00022739,2]
[372549932,1752679863475,-5117.18,0.00022739,2]
[372549933,1752679863486,-778.65,0.00022739,2]
[372549934,1752679863496,-460.0,0.00022739,2]
[372549935,1752679863506,-471.95,0.00022739,2]
[372549936,1752679863516,-10006.83,0.00022739,2]
[372549937,1752679863526,-506.45,0.00022739,2]
[372549938,1752679863536,-2438.56,0.00022739,2]
[372549939,1752679863546,-687.27,0.00022739,2]
[372549940,1752679863556,-639.69,0.00022739,2]
[372549941,1752679863566,-460.0,0.00022739,2]
[372549942,1752679863576,-460.0,0.00022739,2]
[372549943,1752679863587,-521.65,0.00022739,2]
[372549944,1752679863597,-4147.13,0.00022739,2]
[372549945,1752679863607,-460.0,0.00022739,2]
[372549946,1752679863618,-6962.62,0.00022739,2]
[372549947,1752679863629,-959.76,0.00022739,2]
[372549948,1752679863639,-2589.89,0.00022739,2]
[372549949,1752679863649,-3564.08,0.00022739,2]
[372549950,1752679863659,-460.0,0.00022739,2]
[372549951,1752679863669,-1879.23,0.00022739,2]
[372549952,1752679863682,-1196.19,0.00022739,2]
[372549953,1752679863693,-13889.83,0.00022739,2]
[372549954,1752679863703,-2089.21,0.00022739,2]
[372549955,1752679863720,-460.0,0.00022739,2]
[372549956,1752679863730,-864.03,0.00022739,2]
[372549957,1752679863741,-464.03,0.00022739,2]
[372549958,1752679863752,-460.0,0.00022739,2]
[372549959,1752679863764,-460.0,0.00022739,2]
[372549960,1752679863775,-460.0,0.00022739,2]
[372549961,1752679863785,-942.0,0.00022739,2]
[372549962,1752679863796,-460.0,0.00022739,2]
[372549963,1752679863807,-1156.65,0.00022739,2]
[372549964,1752679863819,-460.0,0.00022739,2]
[372549965,1752679863830,-564.35,0.00022739,2]
[372549966,1752679863841,-460.0,0.00022739,2]
[372549967,1752679863852,-5710.44,0.00022739,2]
[372549968,1752679863862,-9435.4,0.00022739,2]
[372549969,1752679863874,-460.0,0.00022739,2]
[372549970,1752679863884,-1063.71,0.00022739,2]
[372549971,1752679863896,-4062.86,0.00022739,2]
[372549972,1752679863907,-460.0,0.00022739,2]
[372549973,1752679863917,-1067.68,0.00022739,2]
[372549974,1752679863928,-801.73,0.00022739,2]
[372549975,1752679863939,-1081.66,0.00022739,2]
[372549976,1752679863949,-460.0,0.00022739,2]
[372549977,1752679863965,-801.73,0.00022739,2]
[372549978,1752679863975,-652.86,0.00022739,2]
[372549979,1752679863986,-662.38,0.00022739,2]
[372549980,1752679863997,-1058.85,0.00022739,2]
[372549981,1752679864007,-917.58,0.00022739,2]
[372549982,1752679864018,-5295.6,0.00022739,2]
[372549983,1752679864028,-4731.5,0.00022739,2]
[372549984,1752679864038,-460.0,0.00022739,2]
[372549985,1752679864049,-1895.02,0.00022739,2]
[372549986,1752679864059,-3263.9,0.00022739,2]
[372549987,1752679864069,-2186.29,0.00022739,2]
[372549988,1752679864079,-5028.57,0.00022739,2]
[372549989,1752679864089,-582.88,0.00022739,2]
[372549990,1752679864098,-460.0,0.00022739,2]
[372549991,1752679864109,-469.31,0.00022739,2]
[372549992,1752679864119,-1167.8,0.00022739,2]
[372549993,1752679864129,-1440.99,0.00022739,2]
[372549994,1752679864139,-467.63,0.00022739,2]
[372549995,1752679864149,-1586.13,0.00022739,2]
[372549996,1752679864159,-422.77781542,0.0002274,2]
[372549997,1752679864169,-1963.0,0.00022752,2]
[372549998,1752679864179,-3500.0,0.0002276,2]
[372549999,1752679864189,-2500.0,0.00022764,2]
[372550000,1752679864199,-2500.0,0.00022764,2]
[372550001,1752679864213,-785.68184615,0.00022764,2]
[372550002,1752679864223,-2500.0,0.00022764,2]
[372550003,1752679864234,-298.9,0.00022775,5]
[372550004,1752679864244,-154.52,0.00022796,2]
[372550005,1752679864254,-9021.18677679,0.00022797,7]
[372550006,1752679864265,-168.0,0.00022846,2]
[372550007,1752679864275,-422.77781542,0.00022849,2]
[372550008,1752679864285,-360.683163,0.000229,7]
[372550009,1752679864295,-160.0,0.00022905,7]
[372550010,1752679864305,-168.0,0.00022925,2]
[372550011,1752679864314,-422.77781542,0.00022959,2]
[372550012,1752679864324,-360.683163,0.00022964,14]
[372550013,1752679864333,-2600.0,0.0002298,2]
[372550014,1752679864342,-500.0,0.00023,8]
[372550015,1752679864352,-48988.37,0.00023,7]
[372550016,1752679864362,-360.683163,0.00023,10]
[372550017,1752679864371,-215.5496034,0.00023,3]
[372550018,1752679864381,-230.8109288,0.00023,3]
[372550019,1752679864390,-525.58295679,0.00023,3]
[372550020,1752679864400,-160.0,0.00023,3]
[372550021,1752679864409,-87033.86720742,0.00023,10]
[372550022,1752679864420,-127972.30691041,0.00023,10]
[372550023,1752679864429,-160.0,0.00023,3]
[372550024,1752679864439,-4279.04,0.00023,7]
[372550025,1752679864449,-49992.79,0.00023,2]
[372550026,1752679864464,-838.99048831,0.00023,3]
[372550027,1752679864473,-500.0,0.00023,8]
[372550028,1752679864484,-9021.18677679,0.00023003,8]
[372550029,1752679864493,-460.0,0.00023013,2]
[372550030,1752679864503,-460.0,0.00023013,2]
[372550031,1752679864512,-617.79,0.00023013,2]
[372550032,1752679864522,-460.0,0.00023013,2]
[372550033,1752679864531,-460.0,0.00023013,2]
[372550034,1752679864541,-561.35,0.00023013,2]
[372550035,1752679864551,-466.62,0.00023013,2]
[372550036,1752679864561,-779.28,0.00023013,2]
[372550037,1752679864570,-460.0,0.00023013,2]
[372550038,1752679864580,-460.0,0.00023013,2]
[372550039,1752679864590,-939.24,0.00023013,2]